fUSD/lending_fUSD_20240107
["ID","MTS","AMOUNT","RATE_DAILY","PERIOD"]
[310655208,1704637844294,-500.0,0.00022566,2]
[310655209,1704637844304,-500.0,0.00022566,2]
[310655210,1704637844316,-4259.52,0.00022566,2]
[310655211,1704637844326,-500.0,0.00022566,2]
[310655212,1704637844336,-500.0,0.00022566,2]
[310655213,1704637844345,-500.0,0.00022566,2]
[310655214,1704637844355,-500.0,0.00022566,2]
[310655215,1704637844364,-500.0,0.00022566,2]
[310655216,1704637844374,-500.0,0.00022566,2]
[310655217,1704637844383,-500.0,0.00022566,2]
[310655218,1704637844392,-500.0,0.00022566,2]
[310655219,1704637844402,-393.11360801,0.00022566,2]
[310655220,1704637844411,-500.0,0.00022566,2]
[310655221,1704637844423,-500.0,0.00022566,2]
[310655222,1704637844432,-500.0,0.00022566,2]
[310655223,1704637844442,-500.0,0.00022566,2]
[310655224,1704637844453,-392.0284473,0.00022566,2]
[310655225,1704637844463,-500.0,0.00022566,2]
[310655226,1704637844472,-500.0,0.00022566,2]
[310655227,1704637844482,-500.0,0.00022566,2]
[310655228,1704637844491,-500.0,0.00022566,2]
[310655229,1704637844501,-500.0,0.00022566,2]
[310655230,1704637844511,-972.61,0.00022566,2]
[310655231,1704637844522,-972.61,0.00022566,2]
[310655232,1704637844532,-500.0,0.00022566,2]
[310655233,1704637844542,-500.0,0.00022566,2]
[310655234,1704637844552,-575.24,0.00022566,2]
[310655235,1704637844561,-500.0,0.00022566,2]
[310655236,1704637844571,-500.0,0.00022566,2]
[310655237,1704637844581,-407.69559616,0.00022566,2]
[310655238,1704637844591,-7305.55,0.00022566,2]
[310655239,1704637844601,-500.0,0.00022566,2]
[310655240,1704637844610,-7305.55,0.00022566,2]
[310655241,1704637844620,-500.0,0.00022566,2]
[310655242,1704637844629,-607.17,0.00022566,2]
[310655243,1704637844639,-605.37484963,0.00022566,2]
[310655244,1704637844648,-500.0,0.00022566,2]
[310655245,1704637844662,-500.0,0.00022566,2]
[310655246,1704637844672,-500.0,0.00022566,2]
[310655247,1704637844681,-500.0,0.00022566,2]
[310655248,1704637844691,-276.25,0.00022566,2]
[310655249,1704637844701,-519.18526697,0.00022566,2]
[310655250,1704637844710,-501.43787694,0.00022566,2]
[310655251,1704637844720,-500.0,0.00022566,2]
[310655252,1704637844730,-500.0,0.00022566,2]
[310655253,1704637844740,-500.0,0.00022566,2]
[310655254,1704637844749,-500.0,0.00022566,2]
[310655255,1704637844759,-500.0,0.00022566,2]
[310655256,1704637844771,-500.0,0.00022566,2]
[310655257,1704637844781,-2016.6,0.00022566,2]
[310655258,1704637844790,-500.0,0.00022566,2]
[310655259,1704637844799,-500.0,0.00022566,2]
[310655260,1704637844810,-500.0,0.00022566,2]
[310655261,1704637844821,-500.0,0.00022566,2]
[310655262,1704637844831,-500.0,0.00022566,2]
[310655263,1704637844841,-500.0,0.00022566,2]
[310655264,1704637844850,-500.0,0.00022566,2]
[310655265,1704637844860,-500.0,0.00022566,2]
[310655266,1704637844871,-500.0,0.00022566,2]
[310655267,1704637844880,-500.0,0.00022566,2]
[310655268,1704637844890,-500.0,0.00022566,2]
[310655269,1704637844899,-500.0,0.00022566,2]
[310655270,1704637844909,-309.00725917,0.00022566,2]
[310655271,1704637844919,-500.0,0.00022566,2]
[310655272,1704637844929,-500.0,0.00022566,2]
[310655273,1704637844938,-1058.56,0.00022566,2]
[310655274,1704637844947,-500.0,0.00022566,2]
[310655275,1704637844956,-500.0,0.00022566,2]
[310655276,1704637844966,-365.94,0.00022566,2]
[310655277,1704637844975,-500.0,0.00022566,2]
[310655278,1704637844985,-500.0,0.00022566,2]
[310655279,1704637844996,-500.0,0.00022566,2]
[310655280,1704637845006,-500.0,0.00022566,2]
[310655281,1704637845015,-500.0,0.00022566,2]
[310655282,1704637845025,-500.0,0.00022566,2]
[310655283,1704637845035,-500.0,0.00022566,2]
[310655284,1704637845045,-500.0,0.00022566,2]
[310655285,1704637845054,-397.76,0.00022566,2]
[310655286,1704637845063,-500.0,0.00022566,2]
[310655287,1704637845073,-500.0,0.00022566,2]
[310655288,1704637845082,-500.0,0.00022566,2]
[310655289,1704637845092,-500.0,0.00022566,2]
[310655290,1704637845101,-500.0,0.00022566,2]
[310655291,1704637845110,-500.0,0.00022566,2]
[310655292,1704637845120,-500.0,0.00022566,2]
[310655293,1704637845129,-500.0,0.00022566,2]
[310655294,1704637845138,-500.0,0.00022566,2]
[310655295,1704637845148,-500.0,0.00022566,2]
[310655296,1704637845157,-500.0,0.00022566,2]
[310655297,1704637845166,-667.45,0.00022566,2]
[310655298,1704637845175,-500.0,0.00022566,2]
[310655299,1704637845185,-500.0,0.00022566,2]
[310655300,1704637845194,-500.68735386,0.00022566,2]
[310655301,1704637845204,-543.32,0.00022566,2]
[310655302,1704637845213,-500.0,0.00022566,2]
[310655303,1704637845222,-500.0,0.00022566,2]
[310655304,1704637845232,-500.0,0.00022566,2]
[310655305,1704637845241,-500.0,0.00022566,2]
[310655306,1704637845250,-500.0,0.00022566,2]
[310655307,1704637845260,-500.0,0.00022566,2]
[310655308,1704637845271,-500.0,0.00022566,2]
[310655309,1704637845280,-500.0,0.00022566,2]
[310655310,1704637845294,-172.38269535,0.00022566,2]
[310655311,1704637845303,-500.0,0.00022566,2]
[310655312,1704637845312,-1681.68,0.00022566,2]
[310655313,1704637845323,-500.0,0.00022566,2]
[310655314,1704637845332,-500.0,0.00022566,2]
[310655315,1704637845342,-500.0,0.00022566,2]
[310655316,1704637845351,-500.0,0.00022566,2]
[310655317,1704637845361,-500.0,0.00022566,2]
[310655318,1704637845370,-500.0,0.00022566,2]
[310655319,1704637845380,-627.29,0.00022566,2]
[310655320,1704637845389,-500.0,0.00022566,2]
[310655321,1704637845399,-500.0,0.00022566,2]
[310655322,1704637845408,-500.0,0.00022566,2]
[310655323,1704637845418,-624.06420211,0.00022566,2]
[310655324,1704637845427,-500.0,0.00022566,2]
[310655325,1704637845437,-574.18,0.00022566,2]
[310655326,1704637845447,-574.18,0.00022566,2]
[310655328,1704637845457,-500.0,0.00022566,2]
[310655330,1704637845467,-500.0,0.00022566,2]
[310655332,1704637845476,-500.0,0.00022566,2]
[310655334,1704637845486,-500.0,0.00022566,2]
[310655336,1704637845496,-500.0,0.00022566,2]
[310655338,1704637845506,-597.89,0.00022566,2]
[310655339,1704637845516,-500.0,0.00022566,2]
[310655340,1704637845527,-500.0,0.00022566,2]
[310655341,1704637845536,-500.0,0.00022566,2]
[310655342,1704637845545,-500.0,0.00022566,2]
[310655343,1704637845555,-500.0,0.00022566,2]
[310655345,1704637845564,-500.0,0.00022566,2]
[310655347,1704637845574,-500.0,0.00022566,2]
[310655349,1704637845583,-526.43,0.00022566,2]
[310655358,1704637845805,-500.0,0.00022566,2]
[310655359,1704637845815,-500.0,0.00022566,2]
[310655360,1704637845825,-500.0,0.00022566,2]
[310655361,1704637845835,-500.0,0.00022566,2]
[310655362,1704637845844,-529.37,0.00022566,2]
[310655363,1704637845853,-500.0,0.00022566,2]
[310655364,1704637845863,-502.06797837,0.00022566,2]
[310655365,1704637845872,-500.0,0.00022566,2]
[310655366,1704637845882,-500.0,0.00022566,2]
[310655367,1704637845891,-500.0,0.00022566,2]
[310655368,1704637845901,-500.0,0.00022566,2]
[310655369,1704637845910,-500.0,0.00022566,2]
[310655370,1704637845920,-500.0,0.00022566,2]
[310655371,1704637845929,-500.0,0.00022566,2]
[310655372,1704637845939,-500.0,0.00022566,2]
[310655373,1704637845948,-500.0,0.00022566,2]
[310655374,1704637845958,-500.0,0.00022566,2]
[310655375,1704637845967,-501.18542355,0.00022566,2]
[310655376,1704637845976,-500.0,0.00022566,2]
[310655377,1704637845986,-500.0,0.00022566,2]
[310655378,1704637845995,-500.0,0.00022566,2]
[310655379,1704637846004,-500.0,0.00022566,2]
[310655380,1704637846013,-502.14622166,0.00022566,2]
[310655381,1704637846023,-500.0,0.00022566,2]
[310655382,1704637846033,-514.11,0.00022566,2]
[310655383,1704637846042,-500.0,0.00022566,2]
[310655384,1704637846051,-500.0,0.00022566,2]
[310655385,1704637846061,-500.0,0.00022566,2]
[310655386,1704637846070,-500.0,0.00022566,2]
[310655387,1704637846079,-598.04935383,0.00022566,2]
[310655388,1704637846090,-500.0,0.00022566,2]
[310655389,1704637846100,-500.0,0.00022566,2]
[310655390,1704637846109,-653.0,0.00022566,2]
[310655391,1704637846118,-653.0,0.00022566,2]
[310655392,1704637846127,-1024.89,0.00022566,2]
[310655393,1704637846137,-500.0,0.00022566,2]
[310655394,1704637846147,-500.0,0.00022566,2]
[310655395,1704637846159,-500.0,0.00022566,2]
[310655396,1704637846169,-500.0,0.00022566,2]
[310655397,1704637846178,-500.0,0.00022566,2]
[310655398,1704637846188,-500.0,0.00022566,2]
[310655399,1704637846198,-500.0,0.00022566,2]
[310655400,1704637846208,-291.53588792,0.00022566,2]
[310655401,1704637846218,-500.0,0.00022566,2]
[310655402,1704637846227,-500.0,0.00022566,2]
[310655403,1704637846237,-500.0,0.00022566,2]
[310655404,1704637846246,-500.0,0.00022566,2]
[310655405,1704637846256,-857.86,0.00022566,2]
[310655407,1704637846266,-857.86,0.00022566,2]
[310655409,1704637846276,-500.0,0.00022566,2]
[310655411,1704637846290,-503.91126715,0.00022566,2]
[310655412,1704637846299,-500.0,0.00022566,2]
[310655414,1704637846309,-500.0,0.00022566,2]
[310655416,1704637846319,-504.69869,0.00022566,2]
[310655418,1704637846329,-500.0,0.00022566,2]
[310655419,1704637846338,-1017.17,0.00022566,2]
[310655420,1704637846348,-500.0,0.00022566,2]
[310655421,1704637846358,-500.0,0.00022566,2]
[310655422,1704637846368,-1017.17,0.00022566,2]
[310655423,1704637846378,-931.43,0.00022566,2]
[310655425,1704637846387,-500.0,0.00022566,2]
[310655427,1704637846397,-500.0,0.00022566,2]
[310655429,1704637846406,-500.0,0.00022566,2]
[310655431,1704637846416,-502.59932277,0.00022566,2]
[310655433,1704637846426,-1027.53,0.00022566,2]
[310655435,1704637846438,-500.0,0.00022566,2]
[310655437,1704637846449,-500.0,0.00022566,2]
[310655440,1704637846461,-791.43,0.00022566,2]
[310655442,1704637846470,-791.43,0.00022566,2]
[310655444,1704637846479,-500.0,0.00022566,2]
[310655446,1704637846489,-297.26556211,0.00022566,2]
[310655448,1704637846498,-500.0,0.00022566,2]
[310655449,1704637846508,-502.84605113,0.00022566,2]
[310655451,1704637846518,-500.0,0.00022566,2]
[310655454,1704637846528,-500.0,0.00022566,2]
[310655456,1704637846538,-500.0,0.00022566,2]
[310655458,1704637846547,-500.0,0.00022566,2]
[310655460,1704637846556,-500.0,0.00022566,2]
[310655462,1704637846566,-819.35,0.00022566,2]
[310655464,1704637846576,-819.35,0.00022566,2]
[310655466,1704637846586,-500.0,0.00022566,2]
[310655467,1704637846596,-500.0,0.00022566,2]
[310655469,1704637846606,-500.0,0.00022566,2]
[310655470,1704637846615,-503.79948595,0.00022566,2]
[310655471,1704637846625,-503.30530427,0.00022566,2]
[310655472,1704637846634,-500.0,0.00022566,2]
[310655473,1704637846644,-500.0,0.00022566,2]
[310655474,1704637846654,-500.0,0.00022566,2]
[310655475,1704637846663,-781.73,0.00022566,2]
[310655476,1704637846673,-500.0,0.00022566,2]
[310655477,1704637846682,-500.0,0.00022566,2]
[310655478,1704637846692,-3190.97,0.00022566,2]
[310655479,1704637846702,-3190.97,0.00022566,2]
[310655480,1704637846711,-500.0,0.00022566,2]
[310655481,1704637846721,-500.0,0.00022566,2]
[310655482,1704637846731,-500.0,0.00022566,2]
[310655483,1704637846741,-500.0,0.00022566,2]
[310655484,1704637846751,-501.99509287,0.00022566,2]
[310655485,1704637846761,-498.73038137,0.00022566,2]
[310655486,1704637846771,-500.0,0.00022566,2]
[310655487,1704637846781,-500.0,0.00022566,2]
[310655488,1704637846790,-500.0,0.00022566,2]
[310655489,1704637846801,-500.0,0.00022566,2]
[310655490,1704637846811,-500.0,0.00022566,2]
[310655491,1704637846822,-557.58217995,0.00022566,2]
[310655492,1704637846833,-1482.03,0.00022566,2]
[310655493,1704637846843,-500.0,0.00022566,2]
[310655494,1704637846854,-500.0,0.00022566,2]
[310655495,1704637846864,-500.0,0.00022566,2]
[310655496,1704637846875,-504.77,0.00022566,2]
[310655497,1704637846886,-500.0,0.00022566,2]
[310655498,1704637846895,-500.0,0.00022566,2]
[310655499,1704637846905,-500.0,0.00022566,2]
[310655500,1704637846915,-500.0,0.00022566,2]
[310655501,1704637846925,-504.69126353,0.00022566,2]
[310655502,1704637846936,-500.0,0.00022566,2]
[310655503,1704637846945,-506.82903443,0.00022566,2]
[310655504,1704637846955,-582.89,0.00022566,2]
[310655505,1704637846964,-500.0,0.00022566,2]
[310655506,1704637846975,-502.14762426,0.00022566,2]
[310655507,1704637846985,-500.0,0.00022566,2]
[310655508,1704637847000,-500.0,0.00022566,2]
[310655509,1704637847009,-502.8363765,0.00022566,2]
[310655510,1704637847019,-454.3083298,0.00022566,2]
[310655511,1704637847029,-500.0,0.00022566,2]
[310655512,1704637847039,-628.85,0.00022566,2]
[310655513,1704637847049,-628.85,0.00022566,2]
[310655514,1704637847059,-503.39827924,0.00022566,2]
[310655515,1704637847069,-500.0,0.00022566,2]
[310655516,1704637847078,-500.0,0.00022566,2]
[310655517,1704637847088,-503.02096442,0.00022566,2]
[310655518,1704637847100,-629.76,0.00022566,2]
[310655519,1704637847110,-500.0,0.00022566,2]
[310655520,1704637847120,-500.0,0.00022566,2]
[310655521,1704637847129,-500.0,0.00022566,2]
[310655522,1704637847139,-500.0,0.00022566,2]
[310655523,1704637847148,-500.0,0.00022566,2]
[310655524,1704637847157,-500.0,0.00022566,2]
[310655525,1704637847167,-525.86,0.00022566,2]
[310655526,1704637847177,-5577.0271,0.00022566,2]
[310655527,1704637847186,-32020.2768,0.00022567,2]
[310655528,1704637847196,-400.96,0.00022637,2]
[310655529,1704637847205,-2207.06314925,0.00022652,2]
[310655530,1704637847215,-1505.1428357,0.00022658,2]
[310655531,1704637847224,-9075.51,0.00022658,2]
[310655532,1704637847234,-500.0,0.00022664,2]
[310655533,1704637847244,-500.0,0.00022664,2]
[310655534,1704637847254,-972.61,0.00022664,2]
[310655535,1704637847265,-7305.55,0.00022664,2]
[310655536,1704637847275,-500.0,0.00022664,2]
[310655537,1704637847286,-500.0,0.00022664,2]
[310655538,1704637847298,-500.0,0.00022664,2]
[310655539,1704637847308,-500.0,0.00022664,2]
[310655540,1704637847317,-500.0,0.00022664,2]
[310655541,1704637847327,-500.0,0.00022664,2]
[310655542,1704637847337,-574.18,0.00022664,2]
[310655543,1704637847346,-500.0,0.00022664,2]
[310655544,1704637847356,-500.0,0.00022664,2]
[310655545,1704637847366,-500.0,0.00022664,2]
[310655546,1704637847375,-500.0,0.00022664,2]
[310655547,1704637847385,-500.0,0.00022664,2]
[310655548,1704637847395,-653.0,0.00022664,2]
[310655549,1704637847405,-500.0,0.00022664,2]
[310655550,1704637847414,-857.86,0.00022664,2]
[310655551,1704637847425,-1017.17,0.00022664,2]
[310655552,1704637847435,-791.43,0.00022664,2]
[310655553,1704637847448,-819.35,0.00022664,2]
[310655554,1704637847459,-3190.97,0.00022664,2]
[310655555,1704637847469,-628.85,0.00022664,2]
[310655556,1704637847481,-500.0,0.00022664,2]
[310655557,1704637847493,-155.0,0.00022664,2]
[310655558,1704637847503,-500.0,0.00022665,2]
[310655559,1704637847513,-504.43084566,0.00022665,2]
[310655560,1704637847522,-500.0,0.00022665,2]
[310655561,1704637847532,-500.0,0.00022665,2]
[310655562,1704637847542,-500.0,0.00022665,2]
[310655563,1704637847552,-284.67194737,0.00022665,2]
[310655564,1704637847562,-500.0,0.00022665,2]
[310655565,1704637847574,-503.17311558,0.00022665,2]
[310655566,1704637847584,-500.0,0.00022665,2]
[310655567,1704637847594,-226.36674502,0.00022665,2]
[310655568,1704637847604,-500.0,0.00022665,2]
[310655569,1704637847614,-500.0,0.00022665,2]
[310655570,1704637847624,-526.07885277,0.00022665,2]
[310655571,1704637847634,-500.0,0.00022665,2]
[310655572,1704637847643,-500.0,0.00022665,2]
[310655573,1704637847653,-500.0,0.00022665,2]
[310655574,1704637847663,-500.0,0.00022665,2]
[310655575,1704637847673,-644.46,0.00022665,2]
[310655576,1704637847682,-500.0,0.00022665,2]
[310655577,1704637847692,-502.86553438,0.00022665,2]
[310655578,1704637847702,-500.0,0.00022665,2]
[310655579,1704637847712,-500.0,0.00022665,2]
[310655580,1704637847721,-500.0,0.00022665,2]
[310655581,1704637847731,-500.0,0.00022665,2]
[310655582,1704637847741,-535.5,0.00022665,2]
[310655583,1704637847751,-502.82043918,0.00022665,2]
[310655584,1704637847762,-500.0,0.00022665,2]
[310655585,1704637847772,-846.81,0.00022665,2]
[310655586,1704637847783,-597.91213002,0.00022665,2]
[310655587,1704637847792,-501.49750146,0.00022665,2]
[310655588,1704637847802,-502.9239103,0.00022665,2]
[310655589,1704637847812,-500.0,0.00022665,2]
[310655590,1704637847822,-506.39471007,0.00022665,2]
[310655591,1704637847832,-217.48688966,0.00022665,2]
[310655592,1704637847842,-502.69132091,0.00022665,2]
[310655593,1704637847852,-509.4034372,0.00022665,2]
[310655594,1704637847862,-1381.06,0.00022665,2]
[310655595,1704637847873,-501.92,0.00022665,2]
[310655596,1704637847884,-496.14998185,0.00022665,2]
[310655597,1704637847895,-591.91767563,0.00022665,2]
[310655598,1704637847905,-500.0,0.00022665,2]
[310655599,1704637847916,-160.90137248,0.00022665,2]
[310655600,1704637847925,-338.26565081,0.00022665,2]
[310655601,1704637847935,-511.98295692,0.00022665,2]
[310655602,1704637847944,-601.26,0.00022665,2]
[310655603,1704637847953,-501.12896297,0.00022665,2]
[310655604,1704637847963,-500.0,0.00022665,2]
[310655605,1704637847973,-502.66985363,0.00022665,2]
[310655606,1704637847982,-2115.91,0.00022665,2]
[310655607,1704637847991,-500.0,0.00022665,2]
[310655608,1704637848001,-500.0,0.00022665,2]
[310655609,1704637848011,-500.0,0.00022665,2]
[310655610,1704637848020,-506.79917439,0.00022665,2]
[310655611,1704637848032,-500.0,0.00022665,2]
[310655612,1704637848043,-534.34,0.00022665,2]
[310655613,1704637848053,-500.0,0.00022665,2]
[310655614,1704637848063,-500.0,0.00022665,2]
[310655615,1704637848073,-500.0,0.00022665,2]
[310655616,1704637848227,-500.0,0.00022665,2]
[310655617,1704637848238,-500.0,0.00022665,2]
[310655618,1704637848247,-500.0,0.00022665,2]
[310655619,1704637848257,-500.0,0.00022665,2]
[310655620,1704637848267,-501.2739099,0.00022665,2]
[310655621,1704637848279,-500.0,0.00022665,2]
[310655622,1704637848294,-500.0,0.00022665,2]
[310655623,1704637848303,-502.26090346,0.00022665,2]
[310655624,1704637848313,-500.0,0.00022665,2]
[310655625,1704637848323,-505.5320135,0.00022665,2]
[310655626,1704637848333,-505.97844093,0.00022665,2]
[310655627,1704637848342,-500.0,0.00022665,2]
[310655628,1704637848352,-502.43808786,0.00022665,2]
[310655629,1704637848361,-500.0,0.00022665,2]
[310655630,1704637848370,-500.0,0.00022665,2]
[310655631,1704637848380,-462.46142999,0.00022665,2]
[310655632,1704637848389,-500.0,0.00022665,2]
[310655633,1704637848399,-502.45591757,0.00022665,2]
[310655634,1704637848408,-500.0,0.00022665,2]
[310655635,1704637848418,-502.12957813,0.00022665,2]
[310655636,1704637848427,-500.0,0.00022665,2]
[310655637,1704637848437,-500.0,0.00022665,2]
[310655638,1704637848446,-596.01251465,0.00022665,2]
[310655639,1704637848456,-500.0,0.00022665,2]
[310655640,1704637848465,-509.40497387,0.00022665,2]
[310655641,1704637848475,-500.0,0.00022665,2]
[310655642,1704637848485,-501.19883375,0.00022665,2]
[310655643,1704637848493,-150.0,0.00022665,2]
[310655644,1704637848503,-504.21470391,0.00022665,2]
[310655645,1704637848513,-500.0,0.00022665,2]
[310655646,1704637848522,-500.0,0.00022665,2]
[310655647,1704637848532,-500.0,0.00022665,2]
[310655648,1704637848542,-502.62775526,0.00022665,2]
[310655649,1704637848552,-500.0,0.00022665,2]
[310655650,1704637848562,-500.0,0.00022665,2]
[310655651,1704637848571,-501.6587756,0.00022665,2]
[310655652,1704637848581,-510.93134738,0.00022665,2]
[310655653,1704637848590,-500.0,0.00022665,2]
[310655654,1704637848599,-501.21591444,0.00022665,2]
[310655655,1704637848609,-503.30980632,0.00022665,2]
[310655656,1704637848618,-510.06394434,0.00022665,2]
[310655657,1704637848629,-500.0,0.00022665,2]
[310655658,1704637848639,-500.0,0.00022665,2]
[310655659,1704637848651,-502.88954575,0.00022665,2]
[310655660,1704637848661,-500.0,0.00022665,2]
[310655661,1704637848671,-500.0,0.00022665,2]
[310655662,1704637848680,-500.0,0.00022665,2]
[310655663,1704637848689,-501.75906438,0.00022665,2]
[310655664,1704637848699,-502.30087908,0.00022665,2]
[310655665,1704637848709,-500.0,0.00022665,2]
[310655666,1704637848719,-500.0,0.00022665,2]
[310655667,1704637848729,-1652.68,0.00022665,2]
[310655668,1704637848738,-503.82435882,0.00022665,2]
[310655669,1704637848749,-500.0,0.00022665,2]
[310655670,1704637848758,-500.0,0.00022665,2]
[310655671,1704637848768,-501.78187148,0.00022665,2]
[310655672,1704637848779,-500.0,0.00022665,2]
[310655673,1704637848788,-500.0,0.00022665,2]
[310655674,1704637848797,-500.0,0.00022665,2]
[310655675,1704637848807,-500.0,0.00022665,2]
[310655676,1704637848817,-500.0,0.00022665,2]
[310655677,1704637848826,-500.0,0.00022665,2]
[310655678,1704637848835,-507.68090024,0.00022665,2]
[310655679,1704637848845,-500.0,0.00022665,2]
[310655680,1704637848854,-917.97,0.00022665,2]
[310655681,1704637848865,-500.0,0.00022665,2]
[310655682,1704637848875,-500.0,0.00022665,2]
[310655683,1704637848885,-500.0,0.00022665,2]
[310655684,1704637848896,-500.0,0.00022665,2]
[310655685,1704637848905,-500.0,0.00022665,2]
[310655686,1704637848915,-383.91842245,0.00022665,2]
[310655687,1704637848924,-500.0,0.00022665,2]
[310655688,1704637848933,-500.0,0.00022665,2]
[310655689,1704637848943,-500.0,0.00022665,2]
[310655690,1704637848953,-505.29650954,0.00022665,2]
[310655691,1704637848963,-250.78920814,0.00022665,2]
[310655692,1704637848972,-581.60967394,0.00022665,2]
[310655693,1704637848982,-555.08470968,0.00022665,2]
[310655694,1704637848990,-500.0,0.00022665,2]
[310655695,1704637849000,-500.0,0.00022665,2]
[310655696,1704637849009,-502.55302248,0.00022665,2]
[310655697,1704637849018,-500.0,0.00022665,2]
[310655698,1704637849029,-500.0,0.00022665,2]
[310655699,1704637849038,-500.0,0.00022665,2]
[310655700,1704637849057,-500.0,0.00022665,2]
[310655701,1704637849069,-500.0,0.00022665,2]
[310655702,1704637849079,-526.90079874,0.00022665,2]
[310655703,1704637849089,-500.0,0.00022665,2]
[310655704,1704637849099,-502.1915586,0.00022665,2]
[310655705,1704637849109,-500.0,0.00022665,2]
[310655706,1704637849119,-500.0,0.00022665,2]
[310655707,1704637849129,-500.0,0.00022665,2]
[310655708,1704637849140,-500.0,0.00022665,2]
[310655709,1704637849150,-500.0,0.00022665,2]
[310655710,1704637849161,-500.0,0.00022665,2]
[310655711,1704637849170,-500.0,0.00022665,2]
[310655712,1704637849180,-500.0,0.00022665,2]
[310655713,1704637849190,-351.35623623,0.00022665,2]
[310655714,1704637849201,-500.0,0.00022665,2]
[310655715,1704637849210,-500.0,0.00022665,2]
[310655716,1704637849220,-391.26272728,0.00022665,2]
[310655717,1704637849230,-500.0,0.00022665,2]
[310655718,1704637849240,-500.0,0.00022665,2]
[310655719,1704637849249,-404.56506399,0.00022665,2]
[310655720,1704637849259,-500.0,0.00022665,2]
[310655721,1704637849283,-500.0,0.00022665,2]
[310655722,1704637849308,-502.77980492,0.00022665,2]
[310655723,1704637849324,-500.0,0.00022665,2]
[310655724,1704637849343,-504.46010673,0.00022665,2]
[310655725,1704637849362,-500.0,0.00022665,2]
[310655726,1704637849381,-500.0,0.00022665,2]
[310655727,1704637849395,-500.0,0.00022665,2]
[310655728,1704637849411,-500.0,0.00022665,2]
[310655729,1704637849428,-500.0,0.00022665,2]
[310655730,1704637849445,-500.0,0.00022665,2]
[310655731,1704637849461,-500.0,0.00022665,2]
[310655732,1704637849477,-500.0,0.00022665,2]
[310655733,1704637849496,-500.0,0.00022665,2]
[310655734,1704637849511,-523.14556275,0.00022665,2]
[310655735,1704637849529,-500.0,0.00022665,2]
[310655736,1704637849547,-500.0,0.00022665,2]
[310655737,1704637849560,-500.0,0.00022665,2]
[310655738,1704637849573,-500.0,0.00022665,2]
[310655739,1704637849590,-575.3619004,0.00022665,2]
[310655740,1704637849608,-500.0,0.00022665,2]
[310655741,1704637849623,-500.0,0.00022665,2]
[310655742,1704637849635,-500.0,0.00022665,2]
[310655743,1704637849650,-500.0,0.00022665,2]
[310655744,1704637849666,-500.0,0.00022665,2]
[310655745,1704637849682,-500.0,0.00022665,2]
[310655746,1704637849695,-500.0,0.00022665,2]
[310655747,1704637849710,-500.0,0.00022665,2]
[310655748,1704637849724,-502.84473259,0.00022665,2]
[310655749,1704637849739,-500.0,0.00022665,2]
[310655750,1704637849754,-623.1328478,0.00022665,2]
[310655751,1704637849769,-500.0,0.00022665,2]
[310655752,1704637849784,-500.0,0.00022665,2]
[310655753,1704637849797,-500.0,0.00022665,2]